fUSD/lending_fUSD_20250206
["ID","MTS","AMOUNT","RATE_DAILY","PERIOD"]
[351930795,1738847460219,-1200.0,0.00019452,5]
[351930796,1738847460230,-1133.16,0.00019452,3]
[351930797,1738847460240,-500.0,0.00019452,3]
[351930798,1738847460251,-500.0,0.00019452,3]
[351930799,1738847460261,-794.94,0.00019452,3]
[351930800,1738847460271,-500.0,0.00019452,3]
[351930801,1738847460281,-500.0,0.00019452,3]
[351930802,1738847460291,-500.0,0.00019452,3]
[351930803,1738847460300,-508.6420564,0.00019452,3]
[351930804,1738847460311,-988.67,0.00019452,3]
[351930805,1738847460321,-500.0,0.00019452,3]
[351930806,1738847460330,-1055.95,0.00019452,3]
[351930807,1738847460340,-563.69,0.00019452,3]
[351930808,1738847460351,-502.7174958,0.00019452,3]
[351930809,1738847460361,-778.72,0.00019452,3]
[351930810,1738847460370,-500.0,0.00019452,3]
[351930811,1738847460380,-1254.94,0.00019452,3]
[351930812,1738847460390,-500.0,0.00019452,3]
[351930813,1738847460399,-315.09973321,0.00019452,3]
[351930814,1738847460408,-650.01,0.00019452,3]
[351930815,1738847460418,-1063.42,0.00019452,3]
[351930816,1738847460428,-500.0,0.00019452,3]
[351930817,1738847460438,-563.38398584,0.00019452,3]
[351930818,1738847460448,-500.0,0.00019452,3]
[351930819,1738847460458,-500.0,0.00019452,3]
[351930820,1738847460467,-500.0,0.00019452,3]
[351930821,1738847460477,-500.0,0.00019452,3]
[351930822,1738847460487,-500.0,0.00019452,3]
[351930823,1738847460498,-193.68416866,0.00019452,3]
[351930824,1738847460507,-554.32,0.00019452,3]
[351930825,1738847460517,-500.0,0.00019452,3]
[351930826,1738847460527,-500.0,0.00019452,3]
[351930827,1738847460536,-500.0,0.00019452,3]
[351930828,1738847460546,-500.0,0.00019452,3]
[351930829,1738847460555,-505.7,0.00019452,3]
[351930830,1738847460565,-581.89,0.00019452,3]
[351930831,1738847460574,-500.0,0.00019452,3]
[351930832,1738847460583,-500.0,0.00019452,3]
[351930833,1738847460593,-500.0,0.00019452,3]
[351930834,1738847460602,-1073.98,0.00019452,3]
[351930835,1738847460611,-500.0,0.00019452,3]
[351930836,1738847460620,-555.99,0.00019452,3]
[351930837,1738847460629,-775.66,0.00019452,3]
[351930838,1738847460639,-500.0,0.00019452,3]
[351930839,1738847460648,-721.6,0.00019452,3]
[351930840,1738847460657,-662.77,0.00019452,3]
[351930841,1738847460667,-1336.44,0.00019452,3]
[351930842,1738847460676,-511.12160747,0.00019452,3]
[351930843,1738847460686,-708.76,0.00019452,3]
[351930844,1738847460695,-926.5,0.00019452,3]
[351930845,1738847460705,-995.9,0.00019452,3]
[351930846,1738847460714,-500.0,0.00019452,3]
[351930847,1738847460724,-500.0,0.00019452,3]
[351930848,1738847460734,-913.96,0.00019452,3]
[351930849,1738847460744,-1783.16,0.00019452,3]
[351930850,1738847460754,-500.0,0.00019452,3]
[351930851,1738847460763,-1191.81,0.00019452,3]
[351930852,1738847460774,-500.0,0.00019452,3]
[351930853,1738847460784,-1368.98,0.00019452,3]
[351930854,1738847460795,-903.51,0.00019452,3]
[351930855,1738847460805,-500.0,0.00019452,3]
[351930856,1738847460815,-500.0,0.00019452,3]
[351930857,1738847460824,-500.0,0.00019452,3]
[351930858,1738847460834,-1131.74,0.00019452,3]
[351930859,1738847460844,-1207.28,0.00019452,3]
[351930860,1738847460855,-500.0,0.00019452,3]
[351930861,1738847460866,-500.0,0.00019452,3]
[351930862,1738847460875,-796.41,0.00019452,3]
[351930863,1738847460885,-800.45,0.00019452,3]
[351930864,1738847460897,-500.0,0.00019452,3]
[351930865,1738847460909,-638.04,0.00019452,3]
[351930866,1738847460919,-500.0,0.00019452,3]
[351930867,1738847460929,-500.0,0.00019452,3]
[351930868,1738847460938,-982.6,0.00019452,3]
[351930869,1738847460947,-500.0,0.00019452,3]
[351930870,1738847460957,-1249.07,0.00019452,3]
[351930871,1738847460967,-860.58,0.00019452,3]
[351930872,1738847460976,-1087.45,0.00019452,3]
[351930873,1738847460989,-629.6,0.00019452,3]
[351930874,1738847460998,-500.0,0.00019452,3]
[351930875,1738847461007,-1026.89,0.00019452,3]
[351930876,1738847461017,-1172.17,0.00019452,3]
[351930877,1738847461026,-902.45,0.00019452,3]
[351930878,1738847461036,-506.27,0.00019452,3]
[351930879,1738847461045,-500.0,0.00019452,3]
[351930880,1738847461056,-1915.12,0.00019452,3]
[351930881,1738847461065,-710.67,0.00019452,3]
[351930882,1738847461075,-1215.01,0.00019452,3]
[351930883,1738847461085,-902.17,0.00019452,3]
[351930884,1738847461095,-169.08827156,0.00019452,3]
[351930885,1738847461104,-500.0,0.00019452,3]
[351930886,1738847461114,-530.8,0.00019452,3]
[351930887,1738847461124,-1160.09,0.00019452,3]
[351930888,1738847461134,-2281.51,0.00019452,3]
[351930889,1738847461144,-629.19,0.00019452,3]
[351930890,1738847461153,-619.32,0.00019452,3]
[351930891,1738847461163,-1488.56,0.00019452,3]
[351930892,1738847461173,-500.0,0.00019452,3]
[351930893,1738847461182,-500.0,0.00019452,3]
[351930894,1738847461192,-1809.02,0.00019452,3]
[351930895,1738847461201,-500.0,0.00019452,3]
[351930896,1738847461211,-500.0,0.00019452,3]
[351930897,1738847461221,-876.65,0.00019452,3]
[351930898,1738847461234,-1535.74,0.00019452,3]
[351930899,1738847461243,-500.0,0.00019452,3]
[351930900,1738847461253,-500.0,0.00019452,3]
[351930901,1738847461263,-1334.99,0.00019452,3]
[351930902,1738847461272,-609.74,0.00019452,3]
[351930903,1738847461282,-678.12,0.00019452,3]
[351930904,1738847461291,-500.0,0.00019452,3]
[351930905,1738847461300,-1547.66,0.00019452,3]
[351930906,1738847461310,-579.07,0.00019452,3]
[351930907,1738847461319,-500.0,0.00019452,3]
[351930908,1738847461329,-3636.45,0.00019452,3]
[351930909,1738847461338,-684.11,0.00019452,3]
[351930910,1738847461348,-500.0,0.00019452,3]
[351930911,1738847461357,-862.86,0.00019452,3]
[351930912,1738847461367,-1245.57,0.00019452,3]
[351930913,1738847461377,-1605.58,0.00019452,3]
[351930914,1738847461387,-500.0,0.00019452,3]
[351930915,1738847461396,-804.82,0.00019452,3]
[351930916,1738847461406,-500.0,0.00019452,3]
[351930917,1738847461415,-500.0,0.00019452,3]
[351930918,1738847461424,-2492.49,0.00019452,3]
[351930919,1738847461433,-500.0,0.00019452,3]
[351930920,1738847461442,-500.0,0.00019452,3]
[351930921,1738847461451,-1404.78,0.00019452,3]
[351930922,1738847461461,-500.0,0.00019452,3]
[351930923,1738847461470,-176.359374,0.00019452,2]
[351930924,1738847461482,-1021.69,0.00019452,3]
[351930925,1738847461491,-728.92,0.00019452,3]
[351930926,1738847461501,-500.0,0.00019452,3]
[351930927,1738847461510,-500.0,0.00019452,3]
[351930928,1738847461520,-500.0,0.00019452,3]
[351930929,1738847461529,-1127.04,0.00019452,3]
[351930930,1738847461538,-756.07,0.00019452,3]
[351930931,1738847461548,-500.0,0.00019452,3]
[351930932,1738847461557,-500.0,0.00019452,3]
[351930933,1738847461566,-1319.56,0.00019452,3]
[351930934,1738847461576,-1063.13,0.00019452,3]
[351930935,1738847461586,-510.20825574,0.00019452,3]
[351930936,1738847461596,-958.14,0.00019452,3]
[351930937,1738847461606,-500.0,0.00019452,3]
[351930938,1738847461617,-519.43,0.00019452,3]
[351930939,1738847461626,-982.29,0.00019452,3]
[351930940,1738847461636,-698.23,0.00019452,3]
[351930941,1738847461645,-729.23,0.00019452,3]
[351930942,1738847461655,-500.0,0.00019452,3]
[351930943,1738847461664,-500.0,0.00019452,3]
[351930944,1738847461674,-992.66,0.00019452,3]
[351930945,1738847461684,-832.08,0.00019452,3]
[351930946,1738847461694,-500.0,0.00019452,3]
[351930947,1738847461704,-500.0,0.00019452,3]
[351930948,1738847461714,-500.0,0.00019452,3]
[351930949,1738847461724,-1231.93,0.00019452,3]
[351930950,1738847461735,-906.53,0.00019452,3]
[351930951,1738847461745,-500.0,0.00019452,3]
[351930952,1738847461755,-1380.26,0.00019452,3]
[351930953,1738847461764,-500.0,0.00019452,3]
[351930954,1738847461774,-500.0,0.00019452,3]
[351930955,1738847461784,-503.59384647,0.00019452,3]
[351930956,1738847461794,-500.0,0.00019452,3]
[351930957,1738847461803,-500.0,0.00019452,3]
[351930958,1738847461812,-1036.51,0.00019452,3]
[351930959,1738847461822,-500.0,0.00019452,3]
[351930960,1738847461831,-623.01,0.00019452,3]
[351930961,1738847461841,-500.0,0.00019452,3]
[351930962,1738847461850,-1663.04,0.00019452,3]
[351930963,1738847461859,-647.09,0.00019452,3]
[351930964,1738847461868,-707.13,0.00019452,3]
[351930965,1738847461879,-764.69,0.00019452,3]
[351930966,1738847461888,-500.0,0.00019452,3]
[351930967,1738847461899,-730.48,0.00019452,3]
[351930968,1738847461911,-647.04,0.00019452,3]
[351930969,1738847461920,-500.0,0.00019452,3]
[351930970,1738847461930,-955.0,0.00019452,3]
[351930971,1738847461939,-500.0,0.00019452,2]
[351930972,1738847461950,-500.0,0.00019452,3]
[351930973,1738847461959,-1403.55,0.00019452,3]
[351930974,1738847461969,-1569.1,0.00019452,3]
[351930975,1738847461982,-500.0,0.00019452,3]
[351930976,1738847461992,-555.4,0.00019452,2]
[351930977,1738847462001,-529.65,0.00019452,3]
[351930978,1738847462011,-500.0,0.00019452,3]
[351930979,1738847462020,-912.9,0.00019452,3]
[351930980,1738847462030,-500.0,0.00019452,3]
[351930981,1738847462039,-500.0,0.00019452,3]
[351930982,1738847462049,-686.82,0.00019452,3]
[351930983,1738847462058,-500.0,0.00019452,3]
[351930984,1738847462067,-1183.86,0.00019452,3]
[351930985,1738847462076,-500.0,0.00019452,3]
[351930986,1738847462086,-1229.89,0.00019452,3]
[351930987,1738847462095,-711.88,0.00019452,3]
[351930988,1738847462105,-802.37,0.00019452,3]
[351930989,1738847462115,-500.0,0.00019452,3]
[351930990,1738847462124,-1148.91,0.00019452,3]
[351930991,1738847462134,-2137.33590154,0.00019454,2]
[351930992,1738847462143,-45789.77276334,0.000195,7]
[351930993,1738847462153,-400.0,0.000195,7]
[351930994,1738847462162,-166.04148688,0.000195,2]
[351930995,1738847462172,-517.0,0.00019507,2]
[351930996,1738847462181,-2130.1106794,0.00019569,2]
[351930997,1738847462191,-923.23,0.00019588,3]
[351930998,1738847462201,-1195.42,0.00019588,3]
[351930999,1738847462210,-913.18,0.00019588,3]
[351931000,1738847462220,-500.0,0.00019588,3]
[351931001,1738847462231,-500.0,0.00019588,3]
[351931002,1738847462241,-371.49346741,0.00019588,3]
[351931003,1738847462251,-1502.46,0.00019588,3]
[351931004,1738847462262,-500.0,0.00019588,3]
[351931005,1738847462273,-1376.05,0.00019588,3]
[351931006,1738847462283,-1528.59,0.00019588,3]
[351931007,1738847462294,-1110.75,0.00019588,3]
[351931008,1738847462304,-1258.35,0.00019588,3]
[351931009,1738847462315,-1149.66,0.00019588,3]
[351931010,1738847462326,-300.0,0.00019588,2]
[351931011,1738847462492,-2890.84,0.00019588,3]
[351931012,1738847462502,-1446.46,0.00019588,3]
[351931013,1738847462511,-910.7,0.00019588,3]
[351931014,1738847462520,-1469.97,0.00019588,3]
[351931015,1738847462531,-783.6,0.00019588,3]
[351931016,1738847462541,-921.09,0.00019588,3]
[351931017,1738847462551,-1150.26,0.00019588,3]
[351931018,1738847462561,-500.0,0.00019588,3]
[351931019,1738847462571,-986.48,0.00019588,3]
[351931020,1738847462580,-1234.33,0.00019588,3]
[351931021,1738847462590,-1208.62,0.00019588,3]
[351931022,1738847462599,-1027.0,0.00019588,3]
[351931023,1738847462608,-599.09,0.00019588,3]
[351931024,1738847462618,-500.0,0.00019589,3]
[351931025,1738847462628,-500.0,0.00019589,5]
[351931026,1738847462638,-500.0,0.00019589,3]
[351931027,1738847462647,-587.65,0.00019589,3]
[351931028,1738847462658,-500.0,0.00019589,3]
[351931029,1738847462668,-500.0,0.00019589,3]
[351931030,1738847462678,-605.72,0.00019589,3]
[351931031,1738847462688,-500.0,0.00019589,3]
[351931032,1738847462697,-500.0,0.00019589,3]
[351931033,1738847462707,-574.22,0.00019589,3]
[351931034,1738847462718,-500.0,0.00019589,3]
[351931035,1738847462728,-500.0,0.00019589,3]
[351931036,1738847462738,-500.0,0.00019589,3]
[351931037,1738847462748,-572.86,0.00019589,3]
[351931038,1738847462757,-500.0,0.00019589,3]
[351931039,1738847462767,-500.0,0.00019589,3]
[351931040,1738847462777,-500.0,0.00019589,3]
[351931041,1738847462786,-500.0,0.00019589,3]
[351931042,1738847462795,-500.0,0.00019589,3]
[351931043,1738847462805,-500.0,0.00019589,3]
[351931044,1738847462814,-500.0,0.00019589,3]
[351931045,1738847462824,-500.0,0.00019589,3]
[351931046,1738847462834,-500.0,0.00019589,3]
[351931047,1738847462844,-500.0,0.00019589,3]
[351931048,1738847462853,-500.0,0.00019589,3]
[351931049,1738847462863,-500.0,0.00019589,3]
[351931050,1738847462872,-500.0,0.00019589,3]
[351931051,1738847462881,-500.0,0.00019589,3]
[351931052,1738847462891,-500.0,0.00019589,3]
[351931053,1738847462902,-733.01,0.00019589,3]
[351931054,1738847462912,-500.0,0.00019589,3]
[351931055,1738847462922,-500.0,0.00019589,3]
[351931056,1738847462932,-500.0,0.00019589,3]
[351931057,1738847462942,-500.0,0.00019589,3]
[351931058,1738847462952,-873.69,0.00019589,3]
[351931059,1738847462961,-500.0,0.00019589,3]
[351931060,1738847462972,-1084.73,0.00019589,3]
[351931061,1738847462984,-500.0,0.00019589,3]
[351931062,1738847462994,-789.7,0.00019589,3]
[351931063,1738847463003,-552.61,0.00019589,3]
[351931064,1738847463013,-500.0,0.00019589,3]
[351931065,1738847463022,-500.0,0.00019589,3]
[351931066,1738847463032,-846.28,0.00019589,3]
[351931067,1738847463042,-500.0,0.00019589,3]
[351931068,1738847463051,-500.0,0.00019589,3]
[351931069,1738847463061,-500.0,0.00019589,3]
[351931070,1738847463071,-500.0,0.00019589,3]
[351931071,1738847463080,-720.07,0.00019589,3]
[351931072,1738847463093,-500.0,0.00019589,3]
[351931073,1738847463103,-500.0,0.00019589,3]
[351931074,1738847463113,-353.35313346,0.00019589,3]
[351931075,1738847463123,-500.0,0.00019589,3]
[351931076,1738847463134,-1503.34,0.00019589,3]
[351931077,1738847463143,-500.0,0.00019589,3]
[351931078,1738847463154,-670.88,0.00019589,3]
[351931079,1738847463164,-500.0,0.00019589,3]
[351931080,1738847463174,-500.0,0.00019589,3]
[351931081,1738847463184,-500.0,0.00019589,3]
[351931082,1738847463194,-1338.69,0.00019589,3]
[351931083,1738847463204,-654.93,0.00019589,3]
[351931084,1738847463214,-500.0,0.00019589,3]
[351931085,1738847463224,-500.0,0.00019589,3]
[351931086,1738847463235,-849.97,0.00019589,3]
[351931087,1738847463244,-570.28,0.00019589,3]
[351931088,1738847463254,-500.0,0.00019589,3]
[351931089,1738847463263,-803.55,0.00019589,3]
[351931090,1738847463273,-952.94,0.00019589,3]
[351931091,1738847463282,-526.63,0.00019589,3]
[351931092,1738847463291,-500.0,0.00019589,3]
[351931093,1738847463301,-500.0,0.00019589,3]
[351931094,1738847463311,-812.08,0.00019589,3]
[351931095,1738847463321,-500.0,0.00019589,3]
[351931096,1738847463331,-1110.91,0.00019589,3]
[351931097,1738847463340,-500.0,0.00019589,3]
[351931098,1738847463350,-500.0,0.00019589,3]
[351931099,1738847463360,-500.0,0.00019589,3]
[351931100,1738847463371,-640.02,0.00019589,3]
[351931101,1738847463382,-734.61,0.00019589,3]
[351931102,1738847463392,-500.0,0.00019589,3]
[351931103,1738847463402,-500.0,0.00019589,3]
[351931104,1738847463412,-500.0,0.00019589,3]
[351931105,1738847463421,-500.0,0.00019589,3]
[351931106,1738847463431,-932.5,0.00019589,3]
[351931107,1738847463442,-500.0,0.00019589,3]
[351931108,1738847463452,-500.0,0.00019589,3]
[351931109,1738847463462,-300.0,0.00019589,3]
[351931110,1738847463472,-545.48,0.00019589,3]
[351931111,1738847463483,-621.04,0.00019589,3]
[351931112,1738847463492,-500.0,0.00019589,3]
[351931113,1738847463503,-504.74793016,0.00019589,3]
[351931114,1738847463513,-644.49843512,0.00019589,3]
[351931115,1738847463523,-1431.05,0.00019589,3]
[351931116,1738847463533,-500.0,0.00019589,3]
[351931117,1738847463542,-500.0,0.00019589,2]
[351931118,1738847463553,-500.0,0.00019589,3]
[351931119,1738847463562,-500.0,0.00019589,3]
[351931120,1738847463572,-778.62,0.00019589,3]
[351931121,1738847463583,-505.56,0.00019589,3]
[351931122,1738847463594,-900.16,0.00019589,3]
[351931123,1738847463604,-500.0,0.00019589,3]
[351931124,1738847463615,-500.0,0.00019589,3]
[351931125,1738847463625,-500.0,0.00019589,3]
[351931126,1738847463635,-500.0,0.00019589,3]
[351931127,1738847463645,-500.0,0.00019589,3]
[351931128,1738847463655,-500.0,0.00019589,3]
[351931129,1738847463665,-500.0,0.00019589,3]
[351931130,1738847463681,-507.79,0.00019589,3]
[351931131,1738847463701,-500.0,0.00019589,3]
[351931132,1738847463716,-500.0,0.00019589,3]
[351931133,1738847463737,-628.06,0.00019589,3]
[351931134,1738847463758,-500.0,0.00019589,3]
[351931135,1738847463776,-500.0,0.00019589,3]
[351931136,1738847463791,-500.0,0.00019589,3]
[351931137,1738847463811,-500.0,0.00019589,3]
[351931138,1738847463831,-719.38,0.00019589,3]
[351931139,1738847463850,-500.0,0.00019589,3]
[351931140,1738847463869,-500.0,0.00019589,3]
[351931141,1738847463887,-500.0,0.00019589,3]
[351931142,1738847463907,-500.0,0.00019589,3]
[351931143,1738847463926,-500.0,0.00019589,3]
[351931144,1738847463944,-525.0,0.00019589,3]
[351931145,1738847463958,-500.0,0.00019589,3]
[351931146,1738847463974,-500.0,0.00019589,3]
[351931147,1738847463994,-500.0,0.00019589,3]
[351931148,1738847464008,-1146.61,0.00019589,3]
[351931149,1738847464027,-675.23,0.00019589,3]
[351931150,1738847464042,-500.0,0.00019589,3]
[351931151,1738847464059,-559.57,0.00019589,3]
[351931152,1738847464075,-500.0,0.00019589,3]
[351931153,1738847464091,-500.0,0.00019589,3]
[351931154,1738847464106,-404.36571763,0.00019589,3]
[351931155,1738847464120,-500.0,0.00019589,3]
[351931156,1738847464135,-500.0,0.00019589,3]
[351931157,1738847464151,-1274.31,0.00019589,3]
[351931158,1738847464167,-569.37,0.00019589,3]
[351931159,1738847464182,-500.0,0.00019589,3]
[351931160,1738847464196,-500.0,0.00019589,3]
[351931161,1738847464212,-500.0,0.00019589,3]
[351931162,1738847464227,-517.91972292,0.00019589,3]
[351931163,1738847464244,-500.0,0.00019589,3]
[351931164,1738847464259,-500.0,0.00019589,3]
[351931165,1738847464274,-500.0,0.00019589,3]
[351931166,1738847464289,-500.0,0.00019589,3]
[351931167,1738847464303,-555.46,0.00019589,3]
[351931168,1738847464318,-543.5,0.00019589,3]
[351931169,1738847464332,-641.97,0.00019589,3]
[351931170,1738847464346,-500.0,0.00019589,3]
[351931171,1738847464361,-500.0,0.00019589,3]
[351931172,1738847464376,-500.0,0.00019589,3]
[351931173,1738847464390,-595.4,0.00019589,3]
[351931174,1738847464405,-500.0,0.00019589,3]
[351931175,1738847464420,-1122.73,0.00019589,3]
[351931176,1738847464434,-500.0,0.00019589,3]
[351931177,1738847464447,-500.0,0.00019589,3]
[351931178,1738847464461,-500.0,0.00019589,3]
[351931179,1738847464475,-500.0,0.00019589,3]
[351931180,1738847464491,-500.0,0.00019589,3]
[351931181,1738847464506,-543.88,0.00019589,3]
[351931182,1738847464521,-500.0,0.00019589,2]
[351931183,1738847464535,-500.0,0.00019589,3]
[351931184,1738847464549,-500.0,0.00019589,3]
[351931185,1738847464563,-500.0,0.00019589,3]
[351931186,1738847464581,-950.26,0.00019589,3]
[351931187,1738847464596,-500.0,0.00019589,3]
[351931188,1738847464610,-673.94,0.00019589,3]
[351931189,1738847464625,-592.40603054,0.00019589,3]
[351931190,1738847464641,-500.0,0.00019589,3]
[351931191,1738847464655,-712.06,0.00019589,3]
[351931192,1738847464669,-500.0,0.00019589,3]
[351931193,1738847464684,-770.76,0.00019589,3]
[351931194,1738847464698,-500.0,0.00019589,3]
[351931195,1738847464712,-539.14,0.00019589,3]
[351931196,1738847464727,-500.0,0.00019589,3]
[351931197,1738847464742,-500.0,0.00019589,3]
[351931198,1738847464757,-500.0,0.00019589,3]
[351931199,1738847464772,-500.0,0.00019589,3]
[351931200,1738847464786,-500.0,0.00019589,3]
[351931201,1738847464800,-500.0,0.00019589,3]
[351931202,1738847464814,-500.0,0.00019589,3]
[351931203,1738847464828,-1247.48,0.00019589,3]
[351931204,1738847464843,-504.93,0.00019589,3]
[351931205,1738847464857,-551.08,0.00019589,3]
[351931206,1738847464872,-500.0,0.00019589,3]
[351931207,1738847464886,-500.0,0.00019589,3]
[351931208,1738847464900,-500.0,0.00019589,3]
[351931209,1738847464916,-680.54,0.00019589,3]
[351931210,1738847464930,-500.0,0.00019589,3]
[351931211,1738847464945,-500.0,0.00019589,3]
[351931212,1738847464958,-500.0,0.00019589,3]
[351931213,1738847464972,-894.05,0.00019589,3]
[351931214,1738847464988,-500.0,0.00019589,3]
[351931215,1738847465003,-500.0,0.00019589,3]
[351931216,1738847465017,-660.05,0.00019589,3]
[351931217,1738847465030,-500.0,0.00019589,3]
[351931218,1738847465045,-500.0,0.00019589,3]
[351931219,1738847465058,-528.52,0.00019589,3]
[351931220,1738847465073,-500.0,0.00019589,3]
[351931221,1738847465088,-500.0,0.00019589,3]
[351931222,1738847465104,-500.0,0.00019589,3]
[351931223,1738847465119,-500.0,0.00019589,3]
[351931224,1738847465133,-753.03,0.00019589,3]
[351931225,1738847465148,-961.38,0.00019589,3]
[351931226,1738847465162,-600.76584197,0.00019589,3]
[351931227,1738847465176,-602.62,0.00019589,3]
[351931228,1738847465190,-670.29,0.00019589,3]
[351931229,1738847465204,-500.0,0.00019589,3]
[351931230,1738847465218,-506.61945016,0.00019589,3]
[351931231,1738847465231,-500.0,0.00019589,3]
[351931232,1738847465245,-500.0,0.00019589,3]
[351931233,1738847465259,-501.6,0.00019589,3]
[351931234,1738847465273,-786.18,0.00019589,3]
[351931235,1738847465287,-500.0,0.00019589,3]
[351931236,1738847465302,-500.0,0.00019589,3]
[351931237,1738847465316,-586.05,0.00019589,3]
[351931238,1738847465327,-598.18,0.00019589,3]
[351931239,1738847465337,-500.0,0.00019589,3]
[351931240,1738847465347,-500.0,0.00019589,3]
[351931241,1738847465357,-500.0,0.00019589,3]
[351931242,1738847465367,-500.0,0.00019589,3]
[351931243,1738847465376,-513.14946341,0.00019589,3]
[351931244,1738847465386,-500.0,0.00019589,3]
[351931245,1738847465395,-500.0,0.00019589,3]
[351931246,1738847465406,-500.0,0.00019589,3]
[351931247,1738847465416,-716.21,0.00019589,3]
[351931248,1738847465426,-500.0,0.00019589,3]
[351931249,1738847465436,-500.0,0.00019589,3]
[351931250,1738847465741,-500.0,0.00019589,3]
[351931251,1738847465763,-500.0,0.00019589,3]
[351931252,1738847465772,-500.0,0.00019589,3]
[351931253,1738847465782,-500.0,0.00019589,3]
[351931254,1738847465791,-825.75,0.00019589,3]
[351931255,1738847465801,-597.02,0.00019589,3]
[351931256,1738847465811,-911.33,0.00019589,3]
[351931257,1738847465821,-500.0,0.00019589,3]
[351931258,1738847465831,-500.0,0.00019589,3]
[351931259,1738847465840,-500.0,0.00019589,3]
[351931260,1738847465851,-500.0,0.00019589,3]
[351931261,1738847465860,-500.0,0.00019589,3]
[351931262,1738847465870,-859.38,0.00019589,3]
[351931263,1738847465880,-560.28246106,0.00019589,3]
[351931264,1738847465889,-500.0,0.00019589,3]
[351931265,1738847465903,-500.0,0.00019589,3]
[351931266,1738847465918,-500.0,0.00019589,3]
[351931267,1738847465928,-514.79484342,0.00019589,3]
[351931268,1738847465937,-500.0,0.00019589,3]
[351931269,1738847465949,-500.0,0.00019589,3]
[351931270,1738847465959,-752.97,0.00019589,3]
[351931271,1738847465968,-500.0,0.00019589,3]
[351931272,1738847465979,-500.0,0.00019589,3]
[351931273,1738847465991,-500.0,0.00019589,3]
[351931274,1738847466000,-500.0,0.00019589,3]
[351931275,1738847466010,-500.0,0.00019589,3]
[351931276,1738847466020,-500.0,0.00019589,3]
[351931277,1738847466029,-500.0,0.00019589,3]
[351931278,1738847466039,-817.51,0.00019589,3]
[351931279,1738847466049,-839.52,0.00019589,3]
[351931280,1738847466059,-500.0,0.00019589,3]
[351931281,1738847466069,-690.2,0.00019589,3]
[351931282,1738847466079,-500.0,0.00019589,3]
[351931283,1738847466089,-934.43,0.00019589,3]
[351931284,1738847466099,-500.0,0.00019589,3]
[351931285,1738847466109,-504.36060809,0.00019589,3]
[351931286,1738847466119,-500.0,0.00019589,3]
[351931287,1738847466129,-500.0,0.00019589,3]
[351931288,1738847466139,-500.0,0.00019589,3]
[351931289,1738847466150,-500.0,0.00019589,3]
[351931290,1738847466159,-425.00000002,0.00019589,3]
[351931291,1738847466170,-534.59,0.00019589,3]
[351931292,1738847466180,-893.08,0.00019589,3]
[351931293,1738847466190,-151.0,0.00019589,2]
[351931294,1738847466200,-189.597148,0.00019589,2]